[Event "*** Titled Tuesday Blitz AM"]
[Site "Chess.com"]
[Date "2020.01.07"]
[Round "3"]
[White "Tayson_7"]
[Black "Rap_woyska"]
[Result "0-1"]
[WhiteElo "2555"]
[BlackElo "2360"]
[TimeControl "180+2"]
[EndTime "9:39:25 PST"]
[Termination "Rap_woyska won by checkmate"]

1. e4 {[%clk 0:03:01.9]} 1... c5 {[%clk 0:02:54.9]} 2. Nf3 {[%clk 0:03:01.1]}
2... e6 {[%clk 0:02:56.1]} 3. d4 {[%clk 0:03:01.2]} 3... cxd4 {[%clk 0:02:58]}
4. Nxd4 {[%clk 0:03:02.9]} 4... Nc6 {[%clk 0:02:59.4]} 5. Nc3 {[%clk 0:03:00]}
5... Qc7 {[%clk 0:02:59.8]} 6. Be3 {[%clk 0:03:00.7]} 6... a6 {[%clk 0:03:00.5]}
7. Qf3 {[%clk 0:03:02.1]} 7... Nf6 {[%clk 0:02:59.5]} 8. O-O-O {[%clk
0:03:01.5]} 8... Ne5 {[%clk 0:03:01.1]} 9. Qg3 {[%clk 0:03:02.2]} 9... b5 {[%clk
0:03:02.7]} 10. f4 {[%clk 0:02:37.7]} 10... Neg4 {[%clk 0:03:03.3]} 11. e5
{[%clk 0:02:36.5]} 11... Nxe3 {[%clk 0:02:52.8]} 12. Qxe3 {[%clk 0:02:38.4]}
12... b4 {[%clk 0:02:41]} 13. exf6 {[%clk 0:02:13.4]} 13... bxc3 {[%clk
0:02:41.5]} 14. Be2 {[%clk 0:01:44.6]} 14... cxb2+ {[%clk 0:02:13.7]} 15. Kb1
{[%clk 0:01:45.1]} 15... gxf6 {[%clk 0:02:14.3]} 16. Bh5 {[%clk 0:01:45.6]}
16... Be7 {[%clk 0:02:08.4]} 17. Qg3 {[%clk 0:01:24]} 17... Kf8 {[%clk
0:01:53.4]} 18. Bf3 {[%clk 0:00:53.5]} 18... Bb7 {[%clk 0:01:51.8]} 19. Qh4
{[%clk 0:00:54.4]} 19... h5 {[%clk 0:01:23.9]} 20. Rhe1 {[%clk 0:00:49.2]} 20...
Bxf3 {[%clk 0:01:24]} 21. Nxf3 {[%clk 0:00:48.2]} 21... Rc8 {[%clk 0:01:22.2]}
22. Re2 {[%clk 0:00:49.2]} 22... f5 {[%clk 0:01:11.3]} 23. Qf2 {[%clk
0:00:41.6]} 23... Bf6 {[%clk 0:01:10.9]} 24. Ne5 {[%clk 0:00:39.1]} 24... Bxe5
{[%clk 0:01:11.6]} 25. fxe5 {[%clk 0:00:39.4]} 25... a5 {[%clk 0:00:39.5]} 26.
Qf4 {[%clk 0:00:27.6]} 26... Qc4 {[%clk 0:00:33.5]} 27. Qe3 {[%clk 0:00:20.5]}
27... Rc7 {[%clk 0:00:30.5]} 28. Red2 {[%clk 0:00:19.8]} 28... Qc5 {[%clk
0:00:16.2]} 29. Qg5 {[%clk 0:00:18]} 29... Ke8 {[%clk 0:00:11.7]} 30. Qg7 {[%clk
0:00:16.5]} 30... Rf8 {[%clk 0:00:12.6]} 31. Qf6 {[%clk 0:00:17.5]} 31... a4
{[%clk 0:00:10.5]} 32. Qh6 {[%clk 0:00:13.8]} 32... a3 {[%clk 0:00:10.6]} 33.
Qxh5 {[%clk 0:00:14.5]} 33... Qxe5 {[%clk 0:00:11.8]} 34. Qf3 {[%clk 0:00:13.1]}
34... d5 {[%clk 0:00:12]} 35. Qxa3 {[%clk 0:00:12.9]} 35... Qc3 {[%clk
0:00:10.4]} 36. Qa4+ {[%clk 0:00:12.8]} 36... Ke7 {[%clk 0:00:10.8]} 37. h4
{[%clk 0:00:13.6]} 37... Rfc8 {[%clk 0:00:11.4]} 38. Qf4 {[%clk 0:00:12.5]}
38... Qf6 {[%clk 0:00:06.4]} 39. h5 {[%clk 0:00:11.7]} 39... Rc4 {[%clk
0:00:07.3]} 40. Qf2 {[%clk 0:00:09.4]} 40... Qg5 {[%clk 0:00:07.5]} 41. Re2
{[%clk 0:00:05.9]} 41... Kf8 {[%clk 0:00:05.5]} 42. Rh1 {[%clk 0:00:04.5]} 42...
Qh6 {[%clk 0:00:05.9]} 43. Qa7 {[%clk 0:00:01.8]} 43... Kg7 {[%clk 0:00:06]} 44.
Qa3 {[%clk 0:00:03.7]} 44... Rc3 {[%clk 0:00:04.8]} 45. Qb4 {[%clk 0:00:04.5]}
45... R8c4 {[%clk 0:00:06.3]} 46. Qd6 {[%clk 0:00:05.5]} 46... Kh7 {[%clk
0:00:07]} 47. Qe7 {[%clk 0:00:06.5]} 47... Qg7 {[%clk 0:00:07.9]} 48. h6 {[%clk
0:00:07.6]} 48... Qg6 {[%clk 0:00:09.3]} 49. Qf8 {[%clk 0:00:09]} 49... f4
{[%clk 0:00:10]} 50. Rf2 {[%clk 0:00:09.4]} 50... e5 {[%clk 0:00:08]} 51. Kxb2
{[%clk 0:00:06.4]} 51... Rxc2+ {[%clk 0:00:08.4]} 52. Rxc2 {[%clk 0:00:06.5]}
52... Qxc2+ {[%clk 0:00:10.3]} 53. Ka3 {[%clk 0:00:04.4]} 53... Qc3# {[%clk
0:00:12.2]} 0-1

[Event "*** Titled Tuesday Blitz AM"]
[Site "Chess.com"]
[Date "2020.01.07"]
[Round "3"]
[White "KRASAVCHIK2002"]
[Black "Alexander_Moskalenko"]
[Result "1/2-1/2"]
[WhiteElo "2484"]
[BlackElo "2781"]
[TimeControl "180+2"]
[EndTime "9:39:27 PST"]
[Termination "Game drawn by repetition"]

1. e4 {[%clk 0:03:01.9]} 1... g6 {[%clk 0:03:00]} 2. h4 {[%clk 0:03:02]} 2... c5
{[%clk 0:02:59.6]} 3. h5 {[%clk 0:03:00.2]} 3... Bg7 {[%clk 0:03:01.2]} 4. Nc3
{[%clk 0:02:56.1]} 4... e6 {[%clk 0:02:56.6]} 5. d4 {[%clk 0:02:48]} 5... cxd4
{[%clk 0:02:53.4]} 6. Nb5 {[%clk 0:02:49.1]} 6... d6 {[%clk 0:02:47.1]} 7. Nxd4
{[%clk 0:02:44.2]} 7... Nc6 {[%clk 0:02:42.7]} 8. Nxc6 {[%clk 0:02:39.7]} 8...
bxc6 {[%clk 0:02:44.6]} 9. h6 {[%clk 0:02:38.3]} 9... Bf6 {[%clk 0:02:44.4]} 10.
f4 {[%clk 0:02:34.7]} 10... Ne7 {[%clk 0:02:40.1]} 11. Be2 {[%clk 0:02:31.3]}
11... O-O {[%clk 0:02:37.3]} 12. g4 {[%clk 0:02:28.8]} 12... c5 {[%clk
0:02:18.5]} 13. Kf2 {[%clk 0:02:20.6]} 13... Bb7 {[%clk 0:02:16.5]} 14. Bf3
{[%clk 0:02:18.3]} 14... g5 {[%clk 0:02:09.5]} 15. c3 {[%clk 0:02:11.6]} 15...
gxf4 {[%clk 0:02:10.3]} 16. Bxf4 {[%clk 0:02:10.8]} 16... Ng6 {[%clk 0:01:59.3]}
17. Bxd6 {[%clk 0:02:08.5]} 17... Qb6 {[%clk 0:02:00.9]} 18. Bxf8 {[%clk
0:02:05.3]} 18... Rxf8 {[%clk 0:02:02.8]} 19. Qb3 {[%clk 0:01:55.5]} 19... Qc7
{[%clk 0:01:59.5]} 20. Rd1 {[%clk 0:01:43]} 20... c4 {[%clk 0:01:52.3]} 21. Qa3
{[%clk 0:01:37.3]} 21... Qb6+ {[%clk 0:01:47.8]} 22. Kg2 {[%clk 0:01:35.5]}
22... Nf4+ {[%clk 0:01:48.6]} 23. Kf1 {[%clk 0:01:35.1]} 23... Qe3 {[%clk
0:01:38.2]} 24. g5 {[%clk 0:01:26.5]} 24... Bxg5 {[%clk 0:00:41.3]} 25. Qd6
{[%clk 0:01:18.8]} 25... Bxe4 {[%clk 0:00:39.3]} 26. Qd4 {[%clk 0:01:16.4]}
26... Bd3+ {[%clk 0:00:39.5]} 27. Rxd3 {[%clk 0:01:14.1]} 27... Qxd3+ {[%clk
0:00:40.9]} 28. Qxd3 {[%clk 0:01:15]} 28... cxd3 {[%clk 0:00:37.5]} 29. Bd1
{[%clk 0:01:16.9]} 29... e5 {[%clk 0:00:28.4]} 30. Nf3 {[%clk 0:01:16.3]} 30...
Bf6 {[%clk 0:00:29.6]} 31. Nd2 {[%clk 0:01:15.6]} 31... Be7 {[%clk 0:00:24.3]}
32. Nc4 {[%clk 0:01:12.7]} 32... e4 {[%clk 0:00:21.3]} 33. Rg1+ {[%clk
0:01:13.9]} 33... Ng6 {[%clk 0:00:21.5]} 34. Ne3 {[%clk 0:01:12.5]} 34... f5
{[%clk 0:00:21.5]} 35. Nd5 {[%clk 0:01:11.6]} 35... Bd8 {[%clk 0:00:20.3]} 36.
c4 {[%clk 0:01:11.2]} 36... Kh8 {[%clk 0:00:21.5]} 37. c5 {[%clk 0:01:10.8]}
37... f4 {[%clk 0:00:23]} 38. c6 {[%clk 0:01:10.4]} 38... Bb6 {[%clk 0:00:23.3]}
39. Nxb6 {[%clk 0:01:01.8]} 39... axb6 {[%clk 0:00:25.2]} 40. Rg5 {[%clk
0:01:03.6]} 40... e3 {[%clk 0:00:26.2]} 41. Rd5 {[%clk 0:01:00.3]} 41... e2+
{[%clk 0:00:25.8]} 42. Bxe2 {[%clk 0:01:01.5]} 42... dxe2+ {[%clk 0:00:27.7]}
43. Kxe2 {[%clk 0:01:03.4]} 43... Ne7 {[%clk 0:00:27.9]} 44. Rd6 {[%clk
0:01:02.1]} 44... f3+ {[%clk 0:00:26.9]} 45. Kf2 {[%clk 0:01:02.1]} 45... Nf5
{[%clk 0:00:28.8]} 46. Re6 {[%clk 0:01:01.1]} 46... Nd4 {[%clk 0:00:28.4]} 47.
Rd6 {[%clk 0:01:00.9]} 47... Nb5 {[%clk 0:00:27.5]} 48. Rd7 {[%clk 0:01:00.6]}
48... Rc8 {[%clk 0:00:28.8]} 49. Kxf3 {[%clk 0:00:56.1]} 49... Kg8 {[%clk
0:00:30.1]} 50. Rg7+ {[%clk 0:00:50.8]} 50... Kf8 {[%clk 0:00:30.5]} 51. Rxh7
{[%clk 0:00:50.9]} 51... Rxc6 {[%clk 0:00:32]} 52. Ke3 {[%clk 0:00:50.8]} 52...
Rd6 {[%clk 0:00:30.3]} 53. Ke4 {[%clk 0:00:48.5]} 53... Kg8 {[%clk 0:00:27.5]}
54. Rg7+ {[%clk 0:00:47.7]} 54... Kh8 {[%clk 0:00:28.6]} 55. Rb7 {[%clk
0:00:47.3]} 55... Rxh6 {[%clk 0:00:28.8]} 56. Kd5 {[%clk 0:00:47.8]} 56... Kg8
{[%clk 0:00:24.3]} 57. a4 {[%clk 0:00:46.6]} 57... Rh5+ {[%clk 0:00:25.3]} 58.
Kc6 {[%clk 0:00:46.6]} 58... Nd4+ {[%clk 0:00:25.5]} 59. Kxb6 {[%clk 0:00:46.9]}
59... Kf8 {[%clk 0:00:26.8]} 60. a5 {[%clk 0:00:45.9]} 60... Rh6+ {[%clk
0:00:23.6]} 61. Kc5 {[%clk 0:00:45.4]} 61... Ne6+ {[%clk 0:00:24.5]} 62. Kb5
{[%clk 0:00:46.8]} 62... Nd8 {[%clk 0:00:24.7]} 63. Rb8 {[%clk 0:00:43.8]} 63...
Ke7 {[%clk 0:00:24.8]} 64. a6 {[%clk 0:00:43]} 64... Rh5+ {[%clk 0:00:24.3]} 65.
Kb6 {[%clk 0:00:43.3]} 65... Rh6+ {[%clk 0:00:23.5]} 66. Kb5 {[%clk 0:00:41.9]}
66... Rh5+ {[%clk 0:00:14]} 67. Kb6 {[%clk 0:00:41.9]} 67... Rh6+ {[%clk
0:00:11.5]} 68. Kb5 {[%clk 0:00:42.1]} 1/2-1/2

[Event "*** Titled Tuesday Blitz AM"]
[Site "Chess.com"]
[Date "2020.01.07"]
[Round "3"]
[White "Sanan_Sjugirov"]
[Black "Zubrrr"]
[Result "1/2-1/2"]
[WhiteElo "2952"]
[BlackElo "2726"]
[TimeControl "180+2"]
[EndTime "9:39:34 PST"]
[Termination "Game drawn by agreement"]

1. Nf3 {[%clk 0:01:07]} 1... f5 {[%clk 0:03:00.4]} 2. g3 {[%clk 0:01:08.1]} 2...
Nf6 {[%clk 0:03:01.9]} 3. Bg2 {[%clk 0:01:09.2]} 3... g6 {[%clk 0:03:03.5]} 4.
d4 {[%clk 0:01:08.6]} 4... Bg7 {[%clk 0:03:04.8]} 5. c4 {[%clk 0:01:10.2]} 5...
O-O {[%clk 0:03:06.3]} 6. O-O {[%clk 0:01:11.5]} 6... d6 {[%clk 0:03:07.8]} 7.
Nc3 {[%clk 0:01:12.8]} 7... Qe8 {[%clk 0:03:09.2]} 8. b4 {[%clk 0:01:00.7]} 8...
e5 {[%clk 0:02:22.7]} 9. dxe5 {[%clk 0:01:02.6]} 9... dxe5 {[%clk 0:02:23.6]}
10. e4 {[%clk 0:01:03.6]} 10... Nxe4 {[%clk 0:02:02.4]} 11. Nxe4 {[%clk
0:01:01.9]} 11... fxe4 {[%clk 0:02:04.3]} 12. Ng5 {[%clk 0:01:03.2]} 12... Nc6
{[%clk 0:02:02.6]} 13. Nxe4 {[%clk 0:00:44.7]} 13... Nxb4 {[%clk 0:01:41.5]} 14.
Ba3 {[%clk 0:00:45.2]} 14... a5 {[%clk 0:01:42]} 15. Qb3 {[%clk 0:00:41.6]}
15... Qe7 {[%clk 0:01:33]} 16. Rab1 {[%clk 0:00:18.3]} 16... Rd8 {[%clk
0:01:06.5]} 17. Rfd1 {[%clk 0:00:17.2]} 17... Bg4 {[%clk 0:00:48.4]} 18. Rxd8+
{[%clk 0:00:17.6]} 18... Rxd8 {[%clk 0:00:50.3]} 19. h3 {[%clk 0:00:19.1]} 19...
Be6 {[%clk 0:00:45.6]} 20. Bxb4 {[%clk 0:00:18]} 20... axb4 {[%clk 0:00:43.5]}
21. Qxb4 {[%clk 0:00:19.4]} 21... Rd1+ {[%clk 0:00:29.8]} 22. Kh2 {[%clk
0:00:20.2]} 22... Qxb4 {[%clk 0:00:30.4]} 23. Rxb4 {[%clk 0:00:22.1]} 23... b6
{[%clk 0:00:22.6]} 24. Ra4 {[%clk 0:00:23.2]} 24... h6 {[%clk 0:00:17.5]} 25. c5
{[%clk 0:00:22.3]} 25... bxc5 {[%clk 0:00:08.9]} 26. Nxc5 {[%clk 0:00:23.6]}
26... Bf7 {[%clk 0:00:10]} 27. Ra8+ {[%clk 0:00:23.1]} 27... Kh7 {[%clk
0:00:10.9]} 28. Ra7 {[%clk 0:00:24.3]} 28... Rd2 {[%clk 0:00:11.8]} 29. Ne4
{[%clk 0:00:23.7]} 29... Rxa2 {[%clk 0:00:11.1]} 30. Rxc7 {[%clk 0:00:24.9]}
30... Kg8 {[%clk 0:00:12.4]} 31. Rc8+ {[%clk 0:00:24.1]} 31... Kh7 {[%clk
0:00:12.4]} 32. Rc7 {[%clk 0:00:24.3]} 32... Kg8 {[%clk 0:00:12.4]} 33. h4
{[%clk 0:00:24.3]} 33... Be6 {[%clk 0:00:09.3]} 34. Rc6 {[%clk 0:00:24]} 34...
Bf7 {[%clk 0:00:08.7]} 35. Rc8+ {[%clk 0:00:25.2]} 35... Kh7 {[%clk 0:00:09.5]}
36. Rc7 {[%clk 0:00:26.7]} 36... Kg8 {[%clk 0:00:10.5]} 37. Bf3 {[%clk
0:00:26.2]} 37... Ra3 {[%clk 0:00:06.9]} 38. Kg2 {[%clk 0:00:26.8]} 38... Rd3
{[%clk 0:00:07.5]} 39. Rc8+ {[%clk 0:00:21.9]} 39... Kh7 {[%clk 0:00:08.4]} 40.
Rc6 {[%clk 0:00:18.2]} 40... Rd4 {[%clk 0:00:08.3]} 41. Rc7 {[%clk 0:00:17.4]}
41... Kg8 {[%clk 0:00:07.8]} 42. Ra7 {[%clk 0:00:15.8]} 42... Bd5 {[%clk
0:00:08.4]} 43. Nc5 {[%clk 0:00:06.5]} 43... e4 {[%clk 0:00:09.5]} 44. Be2
{[%clk 0:00:06.6]} 44... e3+ {[%clk 0:00:08.4]} 45. Kf1 {[%clk 0:00:07.5]} 45...
exf2 {[%clk 0:00:09.3]} 46. Kxf2 {[%clk 0:00:09.4]} 46... Rd2 {[%clk 0:00:10.2]}
47. Ke1 {[%clk 0:00:06.2]} 47... Rb2 {[%clk 0:00:10.5]} 48. Nd3 {[%clk
0:00:06.7]} 48... Bc3+ {[%clk 0:00:11.2]} 49. Kf2 {[%clk 0:00:04]} 49... Bd4+
{[%clk 0:00:11.9]} 50. Kf1 {[%clk 0:00:05.6]} 50... Rxe2 {[%clk 0:00:13.2]} 51.
Rd7 {[%clk 0:00:06.1]} 51... Rd2 {[%clk 0:00:12.5]} 52. Nf4 {[%clk 0:00:06.5]}
52... Bc4+ {[%clk 0:00:13.1]} 53. Ke1 {[%clk 0:00:08]} 53... Bc3 {[%clk
0:00:09.8]} 54. Rxd2 {[%clk 0:00:08.3]} 54... g5 {[%clk 0:00:11.2]} 55. hxg5
{[%clk 0:00:09.1]} 55... hxg5 {[%clk 0:00:13.1]} 56. Nh3 {[%clk 0:00:10.5]}
56... g4 {[%clk 0:00:14.1]} 57. Nf2 {[%clk 0:00:11.8]} 57... Be6 {[%clk
0:00:12.7]} 58. Ke2 {[%clk 0:00:13]} 58... Bxd2 {[%clk 0:00:13.3]} 59. Kxd2
{[%clk 0:00:14.9]} 59... Kg7 {[%clk 0:00:15.2]} 60. Ke3 {[%clk 0:00:16.8]} 60...
Kf6 {[%clk 0:00:14.6]} 61. Kf4 {[%clk 0:00:18.7]} 61... Bd7 {[%clk 0:00:15.1]}
62. Nxg4+ {[%clk 0:00:19.3]} 62... Bxg4 {[%clk 0:00:15.6]} 63. Kxg4 {[%clk
0:00:20.6]} 63... Kg6 {[%clk 0:00:17.1]} 1/2-1/2

[Event "*** Titled Tuesday Blitz AM"]
[Site "Chess.com"]
[Date "2020.01.07"]
[Round "3"]
[White "Chesswizard_2007"]
[Black "OK97"]
[Result "1/2-1/2"]
[WhiteElo "2505"]
[BlackElo "2846"]
[TimeControl "180+2"]
[EndTime "9:39:38 PST"]
[Termination "Game drawn - insufficient material"]

1. d4 {[%clk 0:03:01.9]} 1... Nf6 {[%clk 0:03:00.9]} 2. c4 {[%clk 0:02:58.9]}
2... g6 {[%clk 0:03:02.4]} 3. f3 {[%clk 0:02:58.4]} 3... Bg7 {[%clk 0:03:03.2]}
4. e4 {[%clk 0:02:59.1]} 4... d6 {[%clk 0:03:04.6]} 5. Nc3 {[%clk 0:03:01]} 5...
O-O {[%clk 0:03:05.6]} 6. Bg5 {[%clk 0:03:02.6]} 6... Nc6 {[%clk 0:02:57.2]} 7.
Nge2 {[%clk 0:03:00.7]} 7... a6 {[%clk 0:02:58]} 8. d5 {[%clk 0:03:01.1]} 8...
Ne5 {[%clk 0:02:56.1]} 9. Ng3 {[%clk 0:03:01.2]} 9... c6 {[%clk 0:02:47]} 10.
Qd2 {[%clk 0:02:58.2]} 10... b5 {[%clk 0:02:44.3]} 11. cxb5 {[%clk 0:01:47.1]}
11... cxd5 {[%clk 0:02:28.6]} 12. Bxf6 {[%clk 0:01:41.4]} 12... exf6 {[%clk
0:02:21.8]} 13. Nxd5 {[%clk 0:01:36.7]} 13... f5 {[%clk 0:02:05.7]} 14. b6
{[%clk 0:01:34.3]} 14... fxe4 {[%clk 0:02:00.6]} 15. fxe4 {[%clk 0:01:36.2]}
15... Qh4 {[%clk 0:01:52.7]} 16. Qf4 {[%clk 0:01:28.9]} 16... Qxf4 {[%clk
0:01:48.5]} 17. Nxf4 {[%clk 0:01:30.8]} 17... Rb8 {[%clk 0:01:50]} 18. Nd5
{[%clk 0:01:28.5]} 18... Bb7 {[%clk 0:01:50.4]} 19. Be2 {[%clk 0:00:53.6]} 19...
Bxd5 {[%clk 0:01:49]} 20. exd5 {[%clk 0:00:55.5]} 20... Rxb6 {[%clk 0:01:50.5]}
21. O-O {[%clk 0:00:56.6]} 21... Rxb2 {[%clk 0:01:46.7]} 22. Bxa6 {[%clk
0:00:54.7]} 22... Ra8 {[%clk 0:01:47.9]} 23. Be2 {[%clk 0:00:39]} 23... Raxa2
{[%clk 0:01:47.9]} 24. Rxa2 {[%clk 0:00:40.9]} 24... Rxa2 {[%clk 0:01:49.8]} 25.
Rb1 {[%clk 0:00:35]} 25... h5 {[%clk 0:01:47.1]} 26. Bf1 {[%clk 0:00:35.3]}
26... Ng4 {[%clk 0:01:44.5]} 27. Ne2 {[%clk 0:00:21.4]} 27... Be5 {[%clk
0:01:39.1]} 28. h3 {[%clk 0:00:19.7]} 28... Ne3 {[%clk 0:01:40]} 29. Nc1 {[%clk
0:00:17.3]} 29... Rd2 {[%clk 0:01:39]} 30. Nb3 {[%clk 0:00:11.4]} 30... Rxd5
{[%clk 0:01:38.4]} 31. Re1 {[%clk 0:00:12.8]} 31... Nxf1 {[%clk 0:01:35.6]} 32.
Kxf1 {[%clk 0:00:14.7]} 32... Rb5 {[%clk 0:01:35.3]} 33. Nc1 {[%clk 0:00:12.9]}
33... Kg7 {[%clk 0:01:34.3]} 34. Nd3 {[%clk 0:00:13.5]} 34... Bg3 {[%clk
0:01:34]} 35. Rc1 {[%clk 0:00:14.4]} 35... d5 {[%clk 0:01:29.2]} 36. Rc5 {[%clk
0:00:13.1]} 36... Rxc5 {[%clk 0:01:18.4]} 37. Nxc5 {[%clk 0:00:15]} 37... Kf6
{[%clk 0:01:19.6]} 38. Ke2 {[%clk 0:00:15.4]} 38... Bd6 {[%clk 0:01:18.7]} 39.
Nd3 {[%clk 0:00:15.4]} 39... Kf5 {[%clk 0:01:16.7]} 40. Kf3 {[%clk 0:00:16.7]}
40... h4 {[%clk 0:01:16.6]} 41. Nf2 {[%clk 0:00:15.8]} 41... Be5 {[%clk
0:01:12.5]} 42. Nd1 {[%clk 0:00:13.7]} 42... f6 {[%clk 0:01:07]} 43. Ke3 {[%clk
0:00:12.2]} 43... Ke6 {[%clk 0:01:05.6]} 44. Nf2 {[%clk 0:00:11.9]} 44... f5
{[%clk 0:01:02.4]} 45. Nd1 {[%clk 0:00:11.6]} 45... g5 {[%clk 0:01:03.5]} 46.
Nf2 {[%clk 0:00:11.6]} 46... Bc7 {[%clk 0:01:04.5]} 47. Nd3 {[%clk 0:00:08.2]}
47... Bb6+ {[%clk 0:01:05.7]} 48. Kf3 {[%clk 0:00:09.6]} 48... Ba7 {[%clk
0:01:04.6]} 49. g3 {[%clk 0:00:10.6]} 49... hxg3 {[%clk 0:01:05.1]} 50. Kxg3
{[%clk 0:00:12.5]} 50... Kf6 {[%clk 0:01:00.5]} 51. Kf3 {[%clk 0:00:12.9]} 51...
Kg6 {[%clk 0:00:52.1]} 52. Ne5+ {[%clk 0:00:13.1]} 52... Kh5 {[%clk 0:00:52.6]}
53. Nc6 {[%clk 0:00:14.2]} 53... Bc5 {[%clk 0:00:52.5]} 54. Nd8 {[%clk
0:00:15.5]} 54... Kh4 {[%clk 0:00:49.8]} 55. Ne6 {[%clk 0:00:17]} 55... Be7
{[%clk 0:00:43.2]} 56. Ng7 {[%clk 0:00:10.9]} 56... Kxh3 {[%clk 0:00:43.8]} 57.
Nxf5 {[%clk 0:00:11.8]} 57... g4+ {[%clk 0:00:45.2]} 58. Kf4 {[%clk 0:00:11.5]}
58... Bb4 {[%clk 0:00:36]} 59. Ke5 {[%clk 0:00:04.6]} 59... Kg2 {[%clk
0:00:27.6]} 60. Ne3+ {[%clk 0:00:04.8]} 60... Kf3 {[%clk 0:00:28.1]} 61. Nxg4
{[%clk 0:00:05.5]} 61... Kxg4 {[%clk 0:00:23.2]} 62. Kxd5 {[%clk 0:00:02.8]}
1/2-1/2

[Event "*** Titled Tuesday Blitz AM"]
[Site "Chess.com"]
[Date "2020.01.07"]
[Round "3"]
[White "Rhinos1"]
[Black "WelshTiger"]
[Result "0-1"]
[WhiteElo "2131"]
[BlackElo "2382"]
[TimeControl "180+2"]
[EndTime "9:39:46 PST"]
[Termination "WelshTiger won by resignation"]

1. d4 {[%clk 0:00:44.8]} 1... Nf6 {[%clk 0:03:00.3]} 2. Nf3 {[%clk 0:00:46.3]}
2... g6 {[%clk 0:03:00.8]} 3. g3 {[%clk 0:00:47.8]} 3... Bg7 {[%clk 0:03:02.1]}
4. Bg2 {[%clk 0:00:49.5]} 4... O-O {[%clk 0:03:03.1]} 5. O-O {[%clk 0:00:51.1]}
5... d6 {[%clk 0:03:04]} 6. c4 {[%clk 0:00:51.7]} 6... c6 {[%clk 0:03:05.4]} 7.
Nc3 {[%clk 0:00:52.5]} 7... Bf5 {[%clk 0:03:06.5]} 8. b3 {[%clk 0:00:46.6]} 8...
Ne4 {[%clk 0:03:07.3]} 9. Bb2 {[%clk 0:00:46]} 9... Nxc3 {[%clk 0:03:07.1]} 10.
Bxc3 {[%clk 0:00:46.8]} 10... d5 {[%clk 0:03:08.4]} 11. Rc1 {[%clk 0:00:40.7]}
11... Be4 {[%clk 0:03:08.9]} 12. Bh3 {[%clk 0:00:39.9]} 12... Bxf3 {[%clk
0:03:08.7]} 13. exf3 {[%clk 0:00:40.6]} 13... e6 {[%clk 0:03:10.1]} 14. Re1
{[%clk 0:00:40.4]} 14... Nd7 {[%clk 0:03:09.9]} 15. Ba1 {[%clk 0:00:40.6]} 15...
Nf6 {[%clk 0:02:59.7]} 16. Rc2 {[%clk 0:00:38.6]} 16... Qd7 {[%clk 0:03:00.4]}
17. Bb2 {[%clk 0:00:23.3]} 17... a5 {[%clk 0:03:01.3]} 18. Ba3 {[%clk
0:00:23.7]} 18... Rfc8 {[%clk 0:02:59.5]} 19. c5 {[%clk 0:00:23.4]} 19... Ne8
{[%clk 0:02:54.9]} 20. Bf1 {[%clk 0:00:23.6]} 20... Nc7 {[%clk 0:02:44.5]} 21.
Bc1 {[%clk 0:00:22.7]} 21... Re8 {[%clk 0:02:26.3]} 22. f4 {[%clk 0:00:23.2]}
22... Rec8 {[%clk 0:01:57]} 23. Re3 {[%clk 0:00:21.3]} 23... Ne8 {[%clk
0:01:58]} 24. Rd3 {[%clk 0:00:22]} 24... Nf6 {[%clk 0:01:58.8]} 25. Bg2 {[%clk
0:00:20.7]} 25... Ne4 {[%clk 0:01:59]} 26. f3 {[%clk 0:00:18.3]} 26... Nf6
{[%clk 0:01:59.6]} 27. g4 {[%clk 0:00:18.6]} 27... Re8 {[%clk 0:01:58.2]} 28.
Bd2 {[%clk 0:00:18.1]} 28... Qc7 {[%clk 0:01:56.7]} 29. Qe1 {[%clk 0:00:18.9]}
29... Nd7 {[%clk 0:01:53.4]} 30. h4 {[%clk 0:00:17.1]} 30... a4 {[%clk
0:01:50.7]} 31. b4 {[%clk 0:00:17.6]} 31... b6 {[%clk 0:01:50.3]} 32. cxb6
{[%clk 0:00:16.4]} 32... Nxb6 {[%clk 0:01:51.3]} 33. a3 {[%clk 0:00:16.8]} 33...
Nc4 {[%clk 0:01:52.3]} 34. Bc1 {[%clk 0:00:18.4]} 34... Qa7 {[%clk 0:01:52.8]}
35. Qf2 {[%clk 0:00:19]} 35... Qa6 {[%clk 0:01:49.9]} 36. Rd1 {[%clk 0:00:19.2]}
36... Qb6 {[%clk 0:01:49.8]} 37. Bf1 {[%clk 0:00:19.6]} 37... Nd6 {[%clk
0:01:49.6]} 38. Be3 {[%clk 0:00:20.5]} 38... h5 {[%clk 0:01:43.1]} 39. Rdc1
{[%clk 0:00:20.1]} 39... Rac8 {[%clk 0:01:43.6]} 40. Bh3 {[%clk 0:00:20.3]}
40... hxg4 {[%clk 0:01:44]} 41. fxg4 {[%clk 0:00:20.2]} 41... Ne4 {[%clk
0:01:45.2]} 42. Qe1 {[%clk 0:00:20.9]} 42... Bxd4 {[%clk 0:01:46.2]} 43. Bxd4
{[%clk 0:00:20.7]} 43... Qxd4+ {[%clk 0:01:47.4]} 44. Kg2 {[%clk 0:00:21.6]}
44... c5 {[%clk 0:01:43.8]} 45. Qg1 {[%clk 0:00:20.1]} 45... Qd3 {[%clk
0:01:34.4]} 46. Kh2 {[%clk 0:00:12.6]} 46... c4 {[%clk 0:01:29.7]} 47. Bg2
{[%clk 0:00:10.7]} 47... Qg3+ {[%clk 0:01:24.3]} 48. Kh1 {[%clk 0:00:10.8]}
48... Qxh4+ {[%clk 0:01:25.5]} 49. Bh3 {[%clk 0:00:12]} 49... Qxh3+ {[%clk
0:01:26.9]} 50. Rh2 {[%clk 0:00:13]} 50... Qf3+ {[%clk 0:01:26.1]} 51. Rg2
{[%clk 0:00:11.2]} 51... Kg7 {[%clk 0:01:20.2]} 52. Qd4+ {[%clk 0:00:11.9]}
52... f6 {[%clk 0:01:21.7]} 53. g5 {[%clk 0:00:12.6]} 53... Rh8+ {[%clk
0:01:22.5]} 54. Kg1 {[%clk 0:00:13.5]} 54... Rh3 {[%clk 0:01:11.4]} 55. gxf6+
{[%clk 0:00:14]} 55... Kf7 {[%clk 0:00:58.3]} 56. Re1 {[%clk 0:00:12.1]} 56...
Rch8 {[%clk 0:00:53]} 57. Qa7+ {[%clk 0:00:12.7]} 57... Kxf6 {[%clk 0:00:53.5]}
58. Qd4+ {[%clk 0:00:13.5]} 58... Kf7 {[%clk 0:00:45.6]} 59. Qa7+ {[%clk
0:00:14]} 59... Kg8 {[%clk 0:00:46.3]} 60. Qb8+ {[%clk 0:00:14.8]} 60... Kh7
{[%clk 0:00:47.1]} 61. Qe5 {[%clk 0:00:14.3]} 61... Rf8 {[%clk 0:00:41.8]} 62.
Qxe6 {[%clk 0:00:14.3]} 62... Rh6 {[%clk 0:00:39.4]} 63. Qe7+ {[%clk 0:00:14.4]}
63... Kg8 {[%clk 0:00:40.1]} 64. f5 {[%clk 0:00:14.1]} 64... Qxf5 {[%clk
0:00:35.8]} 65. Rd1 {[%clk 0:00:07]} 65... Qh3 {[%clk 0:00:34.9]} 66. Qe6+
{[%clk 0:00:05.6]} 66... Qxe6 {[%clk 0:00:35.2]} 0-1